bitfinex-derivatives/quotes_BTCF0:USTF0_20260106
["timestamp","ask_amount","ask_price","bid_price","bid_amount"]
[1767728281046,0.02009478,92196.0,92185.0,0.010852]
[1767728281554,0.02009478,92196.0,92182.0,0.010852]
[1767728281947,0.03094578,92196.0,92182.0,0.010852]
[1767728282250,0.02009478,92196.0,92184.0,0.010852]
[1767728282955,0.02009478,92196.0,92181.0,0.09907775]
[1767728283255,0.02032287,92195.0,92182.0,0.010852]
[1767728284356,0.02032287,92195.0,92184.0,0.010852]
[1767728285649,0.010851,92198.0,92181.0,0.09907775]
[1767728286250,0.010851,92196.0,92184.0,0.010852]
[1767728286656,0.02032287,92197.0,92184.0,0.010852]
[1767728286957,0.02032287,92197.0,92186.0,0.010852]
[1767728288452,0.02032287,92197.0,92181.0,0.09907775]
[1767728288662,0.010851,92196.0,92183.0,0.010852]
[1767728291365,0.010851,92196.0,92185.0,0.010852]
[1767728291755,0.010851,92194.0,92181.0,0.09907775]
[1767728292162,0.010851,92194.0,92181.0,0.10992975]
[1767728292664,0.02032287,92196.0,92181.0,0.10992975]
[1767728292858,0.010851,92193.0,92181.0,0.10992975]
[1767728293061,0.010851,92195.0,92182.0,0.010852]
[1767728293460,0.010851,92195.0,92184.0,0.010852]
[1767728294366,0.010851,92194.0,92182.0,0.010852]
[1767728294568,0.010851,92193.0,92181.0,0.09907775]
[1767728294758,0.03117387,92196.0,92182.0,0.010852]
[1767728294958,0.010851,92195.0,92182.0,0.010852]
[1767728295558,0.010851,92192.0,92181.0,0.09907775]
[1767728295867,0.010853,92175.0,92164.0,0.09228]
[1767728296068,0.02032287,92174.0,92164.0,0.09228]
[1767728296373,0.11270835,92178.0,92164.0,0.09228]
[1767728296673,0.010853,92175.0,92164.0,0.09228]
[1767728297764,0.02032287,92182.0,92164.0,0.09228]
[1767728297967,0.010852,92189.0,92174.0,0.10542497]
[1767728298268,0.010851,92198.0,92174.0,0.09457197]
[1767728298269,0.010852,92187.0,92174.0,0.09457197]
[1767728298466,0.010852,92185.0,92170.0,0.010854]
[1767728299566,0.09228,92188.0,92169.0,0.010854]
[1767728299974,0.02032287,92187.0,92169.0,0.010854]
[1767728300971,0.02032287,92187.0,92169.0,0.10542597]
[1767728301166,0.02032287,92187.0,92169.0,0.09457197]
[1767728301482,0.02032287,92184.0,92169.0,0.09457197]
[1767728302174,0.03117487,92184.0,92169.0,0.09457197]
[1767728302371,0.02032287,92184.0,92169.0,0.09457197]
[1767728302566,0.010853,92175.0,92169.0,0.09457197]
[1767728302772,0.02032287,92184.0,92169.0,0.09457197]
[1767728303276,0.010854,92174.0,92159.0,0.01302517]
[1767728303475,0.010854,92174.0,92160.0,0.09232]
[1767728303669,0.010854,92172.0,92160.0,0.02011038]
[1767728303877,0.09228,92188.0,92159.0,0.01302517]
[1767728303878,0.02032287,92176.0,92159.0,0.00217017]
[1767728304182,0.09238548,92180.0,92152.0,7.814e-05]
[1767728304183,0.02032287,92173.0,92153.0,0.02011038]
[1767728304481,0.02032287,92172.0,92154.0,0.09232]
[1767728304782,0.010855,92164.0,92154.0,0.09232]
[1767728304983,0.02032287,92172.0,92154.0,0.09232]
[1767728305183,0.02032287,92172.0,92154.0,0.11243038]
[1767728305391,0.02032287,92172.0,92154.0,0.20700235]
[1767728305881,0.11270835,92176.0,92155.0,0.11468235]
[1767728306080,0.09232,92177.0,92160.0,0.11468235]
[1767728306290,0.010854,92174.0,92162.0,0.11468235]
[1767728306785,0.09232,92177.0,92166.0,0.11468235]
[1767728307089,0.103172,92184.0,92171.0,0.010854]
[1767728307385,0.010853,92182.0,92169.0,0.11468235]
[1767728307585,0.09232,92185.0,92169.0,0.11468235]
[1767728307893,0.09015053,92185.0,92169.0,0.09457197]
[1767728308091,0.010853,92181.0,92169.0,0.09457197]
[1767728308792,0.02032287,92180.0,92167.0,0.010854]
[1767728308993,0.02032287,92180.0,92153.0,0.09457197]
[1767728308994,0.010854,92168.0,92154.0,0.09457197]
[1767728309289,0.02032287,92174.0,92154.0,0.09457197]
[1767728309290,0.02032287,92173.0,92154.0,0.09457197]
[1767728309491,0.02032287,92170.0,92154.0,0.09457197]
[1767728309685,0.010855,92163.0,92154.0,0.09457197]
[1767728309886,0.02032287,92170.0,92154.0,0.09457197]
[1767728310298,0.010855,92164.0,92154.0,0.09457197]
[1767728310597,0.010855,92162.0,92154.0,0.09457197]
[1767728311292,0.010855,92160.0,92154.0,0.09457197]
[1767728311489,0.010855,92163.0,92154.0,0.09457197]
[1767728312281,0.02032287,92170.0,92154.0,0.09457197]
[1767728312486,0.02032287,92170.0,92137.0,0.010858]
[1767728312487,0.02121445,92174.0,92156.0,0.1193914]
[1767728312691,0.010855,92164.0,92156.0,0.1193914]
[1767728313097,0.010855,92164.0,92156.0,0.09855635]
[1767728314096,0.010854,92167.0,92156.0,0.09855635]
[1767728314596,0.010854,92165.0,92156.0,0.09855635]
[1767728314785,0.12438845,92173.0,92156.0,0.09855635]
[1767728314986,0.010856,92156.0,92144.0,0.02083505]
[1767728315186,0.010855,92159.0,92144.0,0.010857]
[1767728315488,0.010855,92159.0,92145.0,0.03169205]
[1767728315897,0.010855,92159.0,92147.0,0.010857]
[1767728316298,0.09232,92162.0,92145.0,0.02083505]
[1767728317099,0.09232,92162.0,92146.0,0.02083505]
[1767728317499,0.09232,92162.0,92147.0,0.02083505]
[1767728318395,0.010855,92159.0,92147.0,0.02083505]
[1767728319199,0.00010628,92158.0,92147.0,0.02083505]
[1767728319400,9.302e-05,92157.0,92147.0,0.02083505]
[1767728319598,0.103175,92162.0,92148.0,0.010856]
[1767728319790,0.103175,92162.0,92148.0,0.03169105]
[1767728319989,0.010855,92160.0,92148.0,0.03169105]
[1767728320190,0.010854,92168.0,92151.0,0.02083505]
[1767728320391,0.09232,92167.0,92152.0,0.1193914]
[1767728320591,0.09232,92167.0,92153.0,0.02083505]
[1767728320992,0.09232,92166.0,92156.0,0.1193914]
[1767728321193,0.010854,92170.0,92157.0,0.010855]
[1767728321394,0.09232,92169.0,92158.0,0.010855]
[1767728321696,0.09232,92168.0,92158.0,0.010855]
[1767728322096,0.010854,92167.0,92156.0,0.09855635]
[1767728322294,0.09232,92168.0,92155.0,0.010856]
[1767728322499,0.010854,92167.0,92155.0,0.010856]
[1767728322901,8.243e-05,92166.0,92155.0,0.010856]
[1767728323094,0.010854,92167.0,92155.0,0.010856]
[1767728323703,0.010854,92167.0,92151.0,0.09855635]
[1767728324107,0.09232,92168.0,92151.0,0.09855635]
[1767728324308,0.09232,92168.0,92155.0,0.010856]
[1767728325797,0.00011049,92167.0,92155.0,0.010856]
[1767728326107,0.09232,92168.0,92155.0,0.010856]
[1767728326308,0.09232,92168.0,92157.0,0.010855]
[1767728326501,0.02121445,92175.0,92157.0,0.010855]
[1767728326707,0.010854,92171.0,92156.0,0.03169105]
[1767728327107,0.010854,92171.0,92156.0,0.02083505]
[1767728327591,0.010854,92171.0,92157.0,0.010855]
[1767728327792,0.010854,92169.0,92157.0,0.03169005]
[1767728328103,0.010854,92169.0,92157.0,0.010855]
[1767728328708,0.010854,92172.0,92159.0,0.010855]
[1767728328904,0.02121445,92175.0,92154.0,0.02083505]
[1767728328905,0.09232,92175.0,92166.0,0.02083505]
[1767728329109,0.02121445,92186.0,92163.0,0.09855635]
[1767728329305,0.02121445,92186.0,92167.0,0.09855635]
[1767728329306,0.103172,92185.0,92167.0,0.09855635]
[1767728329494,0.010852,92183.0,92170.0,0.010854]
[1767728330001,0.11353445,92185.0,92167.0,0.10941035]
[1767728330199,0.02121445,92185.0,92169.0,0.010854]
[1767728330410,0.09232,92184.0,92169.0,0.010854]
[1767728330706,0.00010434,92183.0,92169.0,0.010854]
[1767728330902,8.218e-05,92182.0,92169.0,0.010854]
[1767728331094,0.11353445,92184.0,92169.0,0.010854]
[1767728331299,0.010853,92182.0,92169.0,0.010854]
[1767728332108,0.010853,92181.0,92163.0,0.02083505]
[1767728332906,0.010853,92177.0,92165.0,0.010854]
[1767728333106,0.010853,92181.0,92168.0,0.010854]
[1767728333510,0.09232,92180.0,92168.0,0.010854]
[1767728334204,0.09634829,92188.0,92153.0,0.010856]
[1767728334205,0.09232,92188.0,92179.0,0.010853]
[1767728334412,0.09232,92188.0,92178.0,0.10940935]
[1767728337204,0.09232,92188.0,92181.0,0.010853]
[1767728337417,0.09232,92188.0,92179.0,0.010853]
[1767728340811,0.09232,92188.0,92175.0,0.02083505]
[1767728341210,0.09232,92188.0,92178.0,0.010853]
[1767728341411,0.09232,92188.0,92175.0,0.02083505]
[1767728341607,0.02013724,92199.0,92183.0,0.010852]
[1767728341914,0.09232,92198.0,92185.0,0.010852]
[1767728342118,0.01085,92201.0,92185.0,0.010852]
[1767728342511,0.01085,92199.0,92185.0,0.010852]
[1767728343221,0.010851,92197.0,92182.0,0.010852]
[1767728343417,0.02118092,92200.0,92180.0,0.0219657]
[1767728343418,0.010851,92196.0,92180.0,0.0219657]
[1767728343921,0.010851,92196.0,92182.0,0.010852]
[1767728344223,0.02118092,92199.0,92180.0,0.0219657]
[1767728345219,0.02118092,92199.0,92185.0,0.010852]
[1767728346115,0.010851,92198.0,92185.0,0.010852]
[1767728347920,0.02118092,92199.0,92185.0,0.010852]
[1767728348511,0.010851,92196.0,92184.0,0.010852]
[1767728348911,0.010851,92198.0,92180.0,0.0219657]
[1767728349106,0.03203192,92191.0,92173.0,0.20751551]
[1767728349321,0.02118092,92189.0,92177.0,0.010853]
[1767728349616,0.02118092,92194.0,92182.0,0.010852]
[1767728350016,0.02118092,92194.0,92184.0,0.010852]
[1767728350218,0.03203192,92194.0,92179.0,0.010853]
[1767728350812,0.03203192,92194.0,92181.0,0.010853]
[1767728350813,0.02118092,92194.0,92181.0,0.010853]
[1767728351321,0.03203192,92194.0,92181.0,0.010853]
[1767728351717,0.02118092,92194.0,92181.0,0.010853]
[1767728351912,0.02118092,92194.0,92176.0,0.0219657]
[1767728352113,0.010851,92191.0,92177.0,0.010853]
[1767728352420,0.010851,92191.0,92176.0,0.0219657]
[1767728352421,0.10943195,92195.0,92180.0,0.010853]
[1767728352624,0.010851,92193.0,92180.0,0.010853]
[1767728353323,0.09858095,92195.0,92180.0,0.010853]
[1767728353521,0.09858095,92195.0,92176.0,0.0328187]
[1767728353731,0.010851,92192.0,92177.0,0.010853]
[1767728354018,0.010851,92192.0,92176.0,0.0219657]
[1767728354019,0.010851,92192.0,92180.0,0.0219657]
[1767728355227,0.02118092,92199.0,92180.0,0.0219657]
[1767728355628,0.010851,92193.0,92181.0,0.010853]
[1767728355829,0.02118092,92198.0,92180.0,0.0219657]
[1767728356019,0.02118092,92198.0,92179.0,0.09322981]
[1767728356215,0.010851,92192.0,92179.0,0.09322981]
[1767728357432,0.010852,92191.0,92179.0,0.10408281]
[1767728358528,0.02118092,92198.0,92181.0,0.010853]
[1767728358727,0.20143663,92200.0,92181.0,0.010853]
[1767728358928,0.010851,92193.0,92181.0,0.010853]
[1767728359727,0.01085,92200.0,92188.0,0.010852]
[1767728359926,0.01085,92203.0,92191.0,0.010851]
[1767728360126,0.09858095,92206.0,92191.0,0.010851]
[1767728360127,0.01085,92204.0,92191.0,0.010851]
[1767728360333,0.01085,92204.0,92185.0,0.11519551]
[1767728360334,0.02118092,92205.0,92186.0,0.010852]
[1767728360522,0.010851,92199.0,92186.0,0.010852]
[1767728361124,0.010851,92196.0,92182.0,0.010852]
[1767728361531,0.02118092,92203.0,92184.0,0.010852]
[1767728361830,0.10285568,92200.0,92184.0,0.010852]
[1767728362224,0.010851,92199.0,92184.0,0.010852]
[1767728365225,0.010851,92197.0,92183.0,0.010852]
[1767728365634,0.01085,92200.0,92186.0,0.0219657]
[1767728365835,0.010851,92197.0,92186.0,0.0219657]
[1767728366136,0.02118092,92206.0,92186.0,0.0219657]
[1767728366536,0.010851,92198.0,92186.0,0.0219657]
[1767728366834,0.010851,92198.0,92185.0,0.09322981]
[1767728367035,0.11976187,92206.0,92185.0,0.09322981]
[1767728367036,0.02118092,92205.0,92185.0,0.09322981]
[1767728367634,0.010851,92197.0,92185.0,0.09322981]
[1767728367827,0.010851,92196.0,92185.0,0.09322981]
[1767728369227,0.010851,92198.0,92185.0,0.09322981]
[1767728369634,0.02118092,92204.0,92185.0,0.09322981]
[1767728369838,0.010851,92198.0,92185.0,0.10408181]
[1767728370133,0.010851,92196.0,92185.0,0.11519551]
[1767728370335,0.02118092,92204.0,92185.0,0.11519551]
[1767728370336,0.02118092,92204.0,92185.0,0.00016224]
[1767728370532,0.010851,92196.0,92185.0,0.00016224]
[1767728371838,0.010851,92194.0,92182.0,0.010852]
[1767728372037,0.010851,92194.0,92174.0,0.09232]
[1767728372038,0.010851,92196.0,92183.0,0.010852]
[1767728372240,0.010851,92196.0,92180.0,0.10285568]
[1767728372241,0.010851,92196.0,92184.0,0.010852]
[1767728374540,0.10285568,92200.0,92184.0,0.010852]
[1767728375431,0.09873206,92201.0,92184.0,0.010852]
[1767728375432,0.09232,92222.0,92205.0,0.01085]
[1767728375739,0.09232,92222.0,92199.0,0.09524616]
[1767728375740,0.09232,92222.0,92209.0,0.10285568]
[1767728376042,0.010848,92221.0,92207.0,0.010849]
[1767728376250,0.010848,92221.0,92204.0,0.01085]
[1767728376438,0.01301676,92219.0,92200.0,0.10285568]
[1767728376644,0.00216876,92219.0,92200.0,0.10285568]
[1767728376838,0.00216876,92219.0,92210.0,0.010849]
[1767728377145,0.010848,92225.0,92210.0,0.010849]
[1767728377342,0.010848,92223.0,92205.0,0.01085]
[1767728377546,0.010848,92223.0,92204.0,0.01632554]
[1767728377742,0.010848,92221.0,92206.0,0.01632554]
[1767728378047,0.09873206,92226.0,92210.0,0.11918122]
[1767728378644,0.03921546,92230.0,92216.0,0.10285568]
[1767728378843,0.01842597,92230.0,92217.0,0.010848]
[1767728379040,0.103166,92234.0,92217.0,0.010848]
[1767728379242,0.22092957,92234.0,92217.0,0.010848]
[1767728379450,0.010847,92232.0,92217.0,0.010848]
[1767728380052,0.01903151,92234.0,92221.0,0.01486695]
[1767728380351,0.010847,92231.0,92217.0,0.015609]
[1767728381051,0.010847,92229.0,92217.0,0.015609]
[1767728381442,0.010847,92227.0,92217.0,0.015609]
[1767728381643,0.010847,92227.0,92213.0,0.0262228]
[1767728381853,0.010848,92224.0,92213.0,0.0153738]
[1767728382155,0.010848,92220.0,92209.0,0.09228]
[1767728382344,0.010848,92220.0,92210.0,0.10285568]
[1767728382650,0.010848,92223.0,92210.0,0.10285568]
[1767728382850,0.010848,92223.0,92209.0,0.10571881]
[1767728383043,0.010848,92223.0,92210.0,0.10285568]
[1767728383554,0.010848,92223.0,92209.0,0.50571881]
[1767728383853,0.010848,92223.0,92210.0,0.11606651]
[1767728384054,0.10957906,92226.0,92210.0,0.12691551]
[1767728384446,0.10957906,92226.0,92211.0,0.01308454]
[1767728387056,0.10957906,92226.0,92212.0,0.010849]
[1767728387246,0.09873206,92226.0,92214.0,0.010849]
[1767728387647,0.010847,92229.0,92214.0,0.010849]
[1767728389051,0.010847,92227.0,92211.0,0.02393354]
[1767728389355,0.010847,92227.0,92213.0,0.010849]
[1767728390459,0.02078949,92230.0,92211.0,0.01308454]
[1767728390658,0.010847,92225.0,92211.0,0.02393354]
[1767728391156,0.010847,92225.0,92212.0,0.01267527]
[1767728391356,0.09873206,92245.0,92222.0,0.09524616]
[1767728391561,0.09873206,92245.0,92209.0,0.09228]
[1767728391562,0.010847,92229.0,92220.0,0.10285568]
[1767728391750,0.11952155,92238.0,92219.0,0.1153055]
[1767728391952,0.010848,92224.0,92214.0,0.01244982]
[1767728393361,0.010848,92224.0,92215.0,0.1803]
[1767728393560,0.010848,92224.0,92214.0,0.01244982]
[1767728393961,0.010847,92227.0,92214.0,0.01244982]
[1767728394265,0.010847,92225.0,92214.0,0.01244982]
[1767728394466,0.010847,92226.0,92214.0,0.01244982]
[1767728394667,0.010847,92229.0,92214.0,0.01244982]
[1767728395065,0.09873206,92234.0,92219.0,0.10285568]
[1767728395265,0.01823187,92238.0,92220.0,0.01195968]
[1767728395564,0.09228,92244.0,92228.0,0.12566236]
[1767728395866,0.010845,92242.0,92228.0,0.12566236]
[1767728396268,0.01741014,92244.0,92232.0,0.02258362]
[1767728396467,0.01741014,92244.0,92233.0,0.01173662]
[1767728396972,0.010846,92242.0,92229.0,0.01173662]
[1767728397470,0.01741014,92244.0,92229.0,0.01173662]
[1767728397471,0.01741014,92244.0,92230.0,0.010847]
[1767728397665,0.01741014,92244.0,92232.0,0.010847]
[1767728399074,0.01741014,92244.0,92229.0,0.02258362]
[1767728400070,0.01741014,92244.0,92229.0,0.01173662]
[1767728400974,0.010846,92239.0,92229.0,0.01173662]
[1767728401267,0.01741014,92244.0,92229.0,0.01173662]
[1767728401467,0.010847,92230.0,92220.0,0.01018863]
[1767728401664,0.010847,92233.0,92222.0,0.01018863]
[1767728401859,0.01741014,92244.0,92225.0,0.01018863]
[1767728401860,0.010845,92243.0,92225.0,0.01018863]
[1767728402072,0.01741014,92244.0,92211.0,0.1203]
[1767728402073,0.010848,92222.0,92211.0,0.1203]
[1767728402372,0.010848,92218.0,92212.0,0.09228]
[1767728402575,0.010848,92221.0,92212.0,0.09228]
[1767728402969,0.010848,92224.0,92212.0,0.09228]
[1767728403371,0.010848,92224.0,92213.0,0.1803]
[1767728403563,0.010848,92224.0,92212.0,0.09228]
[1767728404466,0.09723886,92229.0,92212.0,0.09228]
[1767728404467,0.1169335,92229.0,92212.0,0.09228]
[1767728404966,0.010848,92223.0,92212.0,0.09228]
[1767728405167,0.010847,92226.0,92212.0,0.09228]
[1767728405364,0.010848,92224.0,92212.0,0.09228]
[1767728405561,0.11648758,92238.0,92215.0,0.00964438]
[1767728405767,0.11648758,92238.0,92214.0,0.09494198]
[1767728405768,0.010846,92237.0,92221.0,0.00964438]
[1767728405970,0.010846,92235.0,92223.0,0.00964438]
[1767728406176,0.010847,92232.0,92223.0,0.00964438]
[1767728406371,0.010847,92232.0,92220.0,0.1122847]
[1767728406567,0.010846,92235.0,92220.0,0.1122847]
[1767728407175,0.010847,92232.0,92220.0,0.1122847]
[1767728407465,0.09679294,92239.0,92220.0,0.1122847]
[1767728407665,0.09228,92243.0,92199.0,0.00910704]
[1767728407666,0.09679294,92221.0,92199.0,0.00910704]
[1767728407871,0.010848,92224.0,92209.0,0.010849]
[1767728408870,0.09679294,92227.0,92210.0,0.10285568]
[1767728409074,0.09228,92231.0,92217.0,0.00889346]
[1767728409075,0.010847,92231.0,92217.0,0.00889346]
[1767728409867,0.11648758,92233.0,92212.0,0.09494198]
[1767728410068,0.11648758,92229.0,92210.0,0.19513568]
[1767728411177,0.010847,92225.0,92210.0,0.19513568]
[1767728411568,0.010848,92219.0,92210.0,0.09228]
[1767728412070,0.010848,92222.0,92210.0,0.09228]
[1767728412879,0.010848,92225.0,92210.0,0.09228]
[1767728413376,0.09679294,92233.0,92218.0,0.010848]
[1767728413582,0.09679294,92233.0,92215.0,0.010849]
[1767728413583,0.010847,92230.0,92215.0,0.010849]
[1767728414481,0.010847,92233.0,92217.0,0.00050967]
[1767728414985,0.11648758,92239.0,92222.0,0.010848]
[1767728414986,0.010846,92235.0,92222.0,0.010848]
[1767728415283,0.010847,92231.0,92220.0,0.00050967]
[1767728415483,0.09679294,92239.0,92222.0,0.010848]
[1767728415675,0.010846,92240.0,92228.0,0.00033136]
[1767728416275,0.010846,92240.0,92224.0,0.09228]
[1767728416481,0.010846,92240.0,92225.0,0.010847]
[1767728417185,0.010845,92243.0,92229.0,0.010847]
[1767728417384,0.01741014,92244.0,92233.0,0.010846]
[1767728417585,0.01741014,92244.0,92230.0,0.010847]
[1767728417778,0.02825514,92244.0,92229.0,0.09494198]
[1767728417979,0.010845,92242.0,92227.0,0.010847]
[1767728418286,0.010846,92240.0,92227.0,0.010847]
[1767728418484,0.010846,92237.0,92224.0,0.09228]
[1767728419083,0.09679294,92241.0,92224.0,0.09228]
[1767728419282,0.10763894,92241.0,92224.0,0.103127]
[1767728419484,0.010846,92239.0,92224.0,0.103127]
[1767728421080,0.010846,92239.0,92226.0,0.010847]
[1767728422587,0.010846,92238.0,92224.0,0.09228]
[1767728422789,0.010846,92238.0,92225.0,0.010847]
[1767728422979,0.010846,92237.0,92224.0,0.09228]
[1767728423180,0.010846,92237.0,92224.0,0.103128]
[1767728425090,0.09679294,92241.0,92224.0,0.09228]
[1767728425091,0.010846,92236.0,92224.0,0.09228]
[1767728425686,0.09679294,92241.0,92224.0,0.09228]
[1767728425687,0.11648758,92241.0,92224.0,0.09228]
[1767728425880,0.11648758,92234.0,92216.0,0.010848]
[1767728426087,0.11648758,92231.0,92217.0,0.09224]
[1767728426786,0.09679294,92231.0,92217.0,0.09224]
[1767728427294,0.10763994,92231.0,92217.0,0.09224]
[1767728427487,0.09679294,92231.0,92218.0,0.010848]
[1767728427794,0.010846,92233.0,92220.0,0.010848]
[1767728428188,0.010846,92233.0,92217.0,0.09224]
[1767728428994,0.010847,92231.0,92217.0,0.09224]
[1767728429496,0.010847,92231.0,92218.0,0.010848]
[1767728430891,0.010847,92231.0,92217.0,0.103088]
[1767728431096,0.12733358,92234.0,92217.0,0.09224]
[1767728431495,0.010847,92232.0,92220.0,0.010848]
[1767728431888,0.09679294,92234.0,92220.0,0.010848]
[1767728433602,0.010846,92233.0,92220.0,0.010848]
[1767728434905,0.10763894,92234.0,92221.0,0.010848]
[1767728436002,0.010847,92231.0,92217.0,0.103088]
[1767728436205,0.010847,92229.0,92217.0,0.103088]
[1767728436404,0.01835819,92230.0,92212.0,0.010849]
[1767728436701,0.11009886,92223.0,92212.0,0.010849]
[1767728437202,0.09174067,92223.0,92213.0,0.010849]
[1767728437402,0.09174067,92229.0,92216.0,0.010848]
[1767728440901,0.09174067,92229.0,92218.0,0.010848]
[1767728443500,0.010847,92228.0,92209.0,0.09224]
[1767728443698,0.010847,92228.0,92213.0,0.010849]
[1767728444007,0.01835819,92227.0,92213.0,0.010849]
[1767728444209,0.01835819,92227.0,92214.0,0.010849]
[1767728445405,0.09174067,92228.0,92215.0,0.010848]
[1767728445706,0.09174067,92228.0,92216.0,0.010848]
[1767728445907,0.09174067,92228.0,92217.0,0.010848]
[1767728446208,0.01835819,92230.0,92209.0,0.19085885]
[1767728446601,0.18398067,92233.0,92209.0,0.19085885]
[1767728446807,0.20233886,92233.0,92210.0,0.09861885]
[1767728447302,0.11009886,92233.0,92219.0,0.010848]
[1767728447707,0.11009886,92233.0,92223.0,0.010848]
[1767728447909,0.09228,92237.0,92225.0,0.010847]
[1767728448106,0.10258667,92239.0,92225.0,0.010847]
[1767728448409,0.11009886,92238.0,92225.0,0.010847]
[1767728448805,0.01835819,92237.0,92225.0,0.010847]
[1767728449109,0.11009886,92237.0,92225.0,0.010847]
[1767728449306,0.11009886,92237.0,92226.0,0.010847]
[1767728449810,0.09174067,92237.0,92227.0,0.010847]
[1767728450009,0.01835819,92241.0,92228.0,0.010847]
[1767728450208,0.01741014,92244.0,92220.0,0.09861885]
[1767728450209,0.03576833,92244.0,92220.0,0.09861885]
[1767728450513,0.03576833,92244.0,92231.0,0.010847]
[1767728450808,0.010845,92242.0,92229.0,0.010847]
[1767728451105,0.127509,92244.0,92229.0,0.010847]
[1767728451303,0.127509,92244.0,92227.0,0.010847]
[1767728451505,0.010845,92242.0,92229.0,0.010847]
[1767728452105,0.138354,92244.0,92229.0,0.010847]
[1767728452307,0.01741014,92244.0,92237.0,0.010846]
[1767728453306,0.01741014,92244.0,92234.0,0.010846]
[1767728454513,0.01741014,92244.0,92235.0,0.010846]
[1767728455410,0.01741014,92244.0,92236.0,0.010846]
[1767728456412,0.01741014,92244.0,92227.0,0.09861885]
[1767728456709,0.01741014,92244.0,92219.0,0.09228]
[1767728456710,0.11009886,92256.0,92231.0,0.09861885]
[1767728457014,0.010844,92255.0,92233.0,0.09861885]
[1767728457199,0.12094286,92255.0,92233.0,0.09861885]
[1767728457404,0.11062681,92254.0,92240.0,0.010846]
[1767728457604,0.09351217,92252.0,92232.0,0.09224]
[1767728457913,0.11062681,92250.0,92232.0,0.09224]
[1767728459108,0.11062681,92250.0,92235.0,0.010846]
[1767728459300,0.01711464,92249.0,92232.0,0.09224]
[1767728459503,0.01608973,92255.0,92236.0,0.09618996]
[1767728459813,0.09351217,92266.0,92232.0,0.49224]
[1767728459814,0.010843,92266.0,92242.0,0.09618996]
[1767728460009,0.010843,92265.0,92247.0,0.09618996]
[1767728460198,0.01551363,92266.0,92247.0,0.09618996]
[1767728460199,0.010843,92263.0,92248.0,0.09224]
[1767728460907,0.11062681,92254.0,92236.0,0.010846]
[1767728461107,0.103081,92277.0,92237.0,0.09224]
[1767728461108,0.11062681,92252.0,92237.0,0.09224]
[1767728461306,0.11481857,92251.0,92237.0,0.09224]
[1767728461512,0.01558739,92266.0,92237.0,0.09224]
[1767728461513,0.11481857,92249.0,92237.0,0.09224]
[1767728461715,0.11481857,92245.0,92237.0,0.0744059]
[1767728462314,0.09744873,92245.0,92237.0,0.0744059]
[1767728464710,0.01736984,92250.0,92237.0,0.0744059]
[1767728465314,0.09744873,92251.0,92237.0,0.0744059]
[1767728466502,0.09744873,92257.0,92238.0,0.010846]
[1767728466707,0.09744873,92257.0,92239.0,0.0141939]
[1767728467113,0.010843,92265.0,92245.0,0.0141939]
[1767728467312,0.11303612,92266.0,92248.0,0.010845]
[1767728467708,0.13040596,92266.0,92248.0,0.010845]
[1767728467927,0.11481857,92265.0,92248.0,0.010845]
[1767728468819,0.11481857,92265.0,92245.0,0.0141939]
[1767728469019,0.12566157,92264.0,92245.0,0.0250389]
[1767728469520,0.12566157,92264.0,92247.0,0.010845]
[1767728471722,0.010843,92262.0,92247.0,0.010845]
[1767728472918,0.11481857,92264.0,92247.0,0.010845]
[1767728473120,0.10829173,92263.0,92247.0,0.010845]
[1767728473312,0.12566157,92263.0,92247.0,0.010845]
[1767728473714,0.09744873,92262.0,92247.0,0.010845]
[1767728473918,0.010844,92258.0,92243.0,0.010845]
[1767728474221,0.12566257,92256.0,92240.0,0.010846]
[1767728474414,0.11481857,92256.0,92242.0,0.010845]
[1767728474715,0.11481857,92256.0,92240.0,0.11355775]
[1767728474912,0.11481857,92256.0,92240.0,0.10271175]
[1767728475124,0.010844,92251.0,92237.0,0.0744059]
[1767728475330,0.10271175,92260.0,92234.0,0.09224]
[1767728475331,0.11481857,92241.0,92234.0,0.09224]
[1767728475518,0.11481857,92241.0,92232.0,0.010847]
[1767728475911,0.09744873,92241.0,92232.0,0.010847]
[1767728476306,0.01736984,92245.0,92234.0,0.010846]
[1767728477123,0.09744873,92246.0,92236.0,0.010846]
[1767728478121,0.09744873,92246.0,92231.0,0.09224]
[1767728478122,0.09744873,92246.0,92233.0,0.010846]
[1767728478324,0.09744873,92246.0,92235.0,0.010846]
[1767728479120,0.09744873,92251.0,92238.0,0.010846]
[1767728480115,0.09744873,92251.0,92240.0,0.10271175]
[1767728480316,0.11481857,92257.0,92244.0,0.010845]
[1767728480517,0.09744873,92257.0,92244.0,0.010845]
[1767728480810,0.010844,92255.0,92241.0,0.010845]
[1767728481124,0.10829273,92255.0,92241.0,0.010845]
[1767728481325,0.09744873,92254.0,92241.0,0.010845]
[1767728481717,0.010844,92253.0,92240.0,0.10271175]
[1767728482617,0.010844,92253.0,92240.0,0.11355775]
[1767728483019,0.09744873,92254.0,92240.0,0.11355775]
[1767728483419,0.09744873,92254.0,92242.0,0.010845]
[1767728483622,0.09744873,92254.0,92240.0,0.10271175]
[1767728484622,0.09744873,92251.0,92230.0,0.10271175]
[1767728484822,0.11481857,92246.0,92231.0,0.103087]
[1767728485032,0.11481857,92245.0,92233.0,0.010846]
[1767728485219,0.11481857,92242.0,92230.0,0.010847]
[1767728485416,0.11481857,92242.0,92234.0,0.09224]
[1767728485824,0.09744873,92242.0,92234.0,0.09224]
[1767728486732,0.09744873,92242.0,92235.0,0.010846]
[1767728487120,0.010844,92251.0,92237.0,0.010846]
[1767728487425,0.010844,92251.0,92234.0,0.09224]
[1767728487426,0.10829273,92257.0,92244.0,0.010845]
[1767728488538,0.11481857,92257.0,92240.0,0.10271175]
[1767728488720,0.11481857,92255.0,92240.0,0.10271175]
[1767728490129,0.010844,92254.0,92240.0,0.11355775]
[1767728491336,0.010844,92254.0,92240.0,0.10271175]
[1767728491337,0.0995227,92254.0,92240.0,0.10271175]
[1767728491822,0.010844,92251.0,92240.0,0.10271175]
[1767728492435,0.010844,92251.0,92237.0,0.010846]
[1767728492839,0.1103667,92251.0,92237.0,0.010846]
[1767728493535,0.11627628,92251.0,92234.0,0.09224]
[1767728493742,0.11627628,92251.0,92231.0,0.00977162]
[1767728493743,0.12712128,92244.0,92227.0,0.1803]
[1767728493932,0.0995227,92242.0,92230.0,0.10271175]